lending/lending_fUSD_20250819
["ID","MTS","AMOUNT","RATE_DAILY","PERIOD"]
[380272310,1755630804579,-400.0,0.00024369,30]
[380272311,1755630804645,-400.0,0.00024369,30]
[380272312,1755630804711,-1183.6,0.00024369,30]
[380272313,1755630804777,-400.0,0.00024369,30]
[380272314,1755630804842,-1571.68,0.00024369,30]
[380272315,1755630804907,-400.0,0.00024369,30]
[380272316,1755630804972,-400.0,0.00024369,30]
[380272317,1755630805038,-400.0,0.00024369,30]
[380272318,1755630805108,-734.99,0.00024369,30]
[380272319,1755630805178,-1852.19,0.00024369,30]
[380272320,1755630805245,-3306.45,0.00024369,30]
[380272321,1755630805310,-953.11,0.00024369,30]
[380272322,1755630805376,-2734.83,0.00024369,30]
[380272323,1755630805440,-1981.94,0.00024369,30]
[380272324,1755630805504,-553.29,0.00024369,30]
[380272325,1755630805568,-486.58,0.00024369,30]
[380272326,1755630805631,-400.0,0.00024369,30]
[380272327,1755630805695,-987.13,0.00024369,30]
[380272328,1755630805760,-713.66,0.00024369,30]
[380272329,1755630806260,-1769.53,0.00024369,30]
[380272330,1755630806327,-1151.9,0.00024369,30]
[380272331,1755630806397,-176.05990761,0.00024369,30]
[380272332,1755630806462,-2191.01,0.00024369,30]
[380272333,1755630806526,-1484.23,0.00024369,30]
[380272334,1755630806592,-1462.98,0.00024369,30]
[380272335,1755630806657,-400.0,0.00024369,30]
[380272336,1755630806720,-400.0,0.00024369,30]
[380272337,1755630806784,-1594.1,0.00024369,30]
[380272338,1755630806847,-584.29,0.00024369,30]
[380272339,1755630806911,-400.0,0.00024369,30]
[380272340,1755630806978,-1595.91,0.00024369,30]
[380272341,1755630807045,-400.0,0.00024369,30]
[380272342,1755630807112,-400.0,0.00024369,30]
[380272343,1755630807181,-3407.34,0.00024369,30]
[380272344,1755630807251,-1455.26,0.00024369,30]
[380272345,1755630807320,-1524.7,0.00024369,30]
[380272346,1755630807391,-1790.8,0.00024369,30]
[380272347,1755630807460,-2909.2,0.00024369,30]
[380272348,1755630807526,-644.07,0.00024369,30]
[380272349,1755630807599,-1873.68,0.00024369,30]
[380272350,1755630807664,-400.0,0.00024369,30]
[380272351,1755630807735,-1158.18,0.00024369,30]
[380272352,1755630807800,-400.0,0.00024369,30]
[380272353,1755630807867,-400.0,0.00024369,30]
[380272354,1755630807931,-3025.09,0.00024369,30]
[380272355,1755630807998,-2938.04,0.00024369,30]
[380272356,1755630808062,-400.0,0.00024369,30]
[380272357,1755630808129,-1809.01,0.00024369,30]
[380272358,1755630808196,-400.0,0.00024369,30]
[380272359,1755630808263,-2010.96,0.00024369,30]
[380272360,1755630808330,-2130.28,0.00024369,30]
[380272361,1755630808400,-846.47,0.00024369,30]
[380272362,1755630808468,-4782.04,0.00024369,30]
[380272363,1755630808532,-490.99,0.00024369,30]
[380272364,1755630808597,-1217.18,0.00024369,30]
[380272365,1755630808660,-400.0,0.00024369,30]
[380272366,1755630808725,-400.0,0.00024369,30]
[380272367,1755630808788,-928.72,0.00024369,30]
[380272368,1755630808853,-400.0,0.00024369,30]
[380272369,1755630808918,-1675.25,0.00024369,30]
[380272370,1755630808981,-1922.59,0.00024369,30]
[380272371,1755630809047,-1996.2,0.00024369,30]
[380272372,1755630809111,-400.0,0.00024369,30]
[380272373,1755630809174,-3257.29,0.00024369,30]
[380272374,1755630809240,-593.75,0.00024369,30]
[380272375,1755630809304,-400.0,0.00024369,30]
[380272376,1755630809370,-861.27,0.00024369,30]
[380272377,1755630809438,-1189.14,0.00024369,30]
[380272378,1755630809502,-400.0,0.00024369,30]
[380272379,1755630809563,-422.52,0.00024369,30]
[380272380,1755630809623,-400.0,0.00024369,30]
[380272381,1755630809688,-1492.14,0.00024369,30]
[380272382,1755630809752,-400.0,0.00024369,30]
[380272383,1755630809816,-1658.3,0.00024369,30]
[380272384,1755630809881,-3001.12,0.00024369,30]
[380272385,1755630809944,-831.55,0.00024369,30]
[380272386,1755630810008,-1042.89,0.00024369,30]
[380272387,1755630810072,-712.93,0.00024369,30]
[380272388,1755630810136,-801.03,0.00024369,30]
[380272389,1755630810202,-3777.75,0.00024369,30]
[380272390,1755630810269,-1627.46,0.00024369,30]
[380272391,1755630810332,-400.0,0.00024369,30]
[380272392,1755630810398,-400.0,0.00024369,30]
[380272393,1755630810463,-669.09,0.00024369,30]
[380272394,1755630810524,-2229.74,0.00024369,30]
[380272395,1755630810584,-2223.29,0.00024369,30]
[380272396,1755630810647,-2157.52,0.00024369,30]
[380272397,1755630810706,-2318.08,0.00024369,30]
[380272398,1755630810764,-400.0,0.00024369,30]
[380272399,1755630810823,-400.0,0.00024369,30]
[380272400,1755630810886,-400.0,0.00024369,30]
[380272401,1755630810942,-2788.58,0.00024369,30]
[380272402,1755630810999,-666.25,0.00024369,30]
[380272403,1755630811058,-739.46,0.00024369,30]
[380272404,1755630811116,-400.0,0.00024369,30]
[380272405,1755630811174,-400.0,0.00024369,30]
[380272406,1755630811335,-1590.45,0.00024369,30]
[380272407,1755630811402,-1065.74,0.00024369,30]
[380272408,1755630811467,-575.07,0.00024369,30]
[380272409,1755630811529,-498.22,0.00024369,30]
[380272410,1755630811592,-400.0,0.00024369,30]
[380272411,1755630811650,-400.0,0.00024369,30]
[380272412,1755630811706,-400.0,0.00024369,30]
[380272413,1755630811764,-6511.48,0.00024369,30]
[380272414,1755630811820,-2210.73,0.00024369,30]
[380272415,1755630811875,-2425.08,0.00024369,30]
[380272416,1755630811929,-590.81,0.00024369,30]
[380272417,1755630811985,-1227.79,0.00024369,30]
[380272418,1755630812042,-752.39,0.00024369,30]
[380272419,1755630812103,-463.19,0.00024369,30]
[380272420,1755630812165,-400.0,0.00024369,30]
[380272421,1755630812229,-1561.3,0.00024369,30]
[380272422,1755630812291,-1742.71,0.00024369,30]
[380272423,1755630812351,-400.0,0.00024369,30]
[380272424,1755630812412,-400.0,0.00024369,30]
[380272425,1755630812471,-400.0,0.00024369,30]
[380272426,1755630812530,-400.0,0.00024369,30]
[380272427,1755630812590,-944.83,0.00024369,30]
[380272428,1755630812649,-400.0,0.00024369,30]
[380272429,1755630812708,-1256.14,0.00024369,30]
[380272430,1755630812768,-2403.42,0.00024369,30]
[380272431,1755630812829,-12558.9,0.00024369,30]
[380272432,1755630812891,-400.0,0.00024369,30]
[380272433,1755630812949,-1406.06,0.00024369,30]
[380272434,1755630813007,-1252.64,0.00024369,30]
[380272435,1755630813073,-1348.48,0.00024369,30]
[380272436,1755630813143,-2108.64,0.00024369,30]
[380272437,1755630813213,-2011.64,0.00024369,30]
[380272438,1755630813285,-2694.66,0.00024369,30]
[380272439,1755630813356,-400.0,0.00024369,30]
[380272440,1755630813423,-546.57868419,0.00024369,30]
[380272441,1755630813487,-771.77,0.00024369,30]
[380272442,1755630813551,-1676.47,0.00024369,30]
[380272443,1755630813613,-400.0,0.00024369,30]
[380272444,1755630813676,-2147.28,0.00024369,30]
[380272445,1755630813746,-400.0,0.00024369,30]
[380272446,1755630813809,-1004.69,0.00024369,30]
[380272447,1755630813869,-400.0,0.00024369,30]
[380272448,1755630813930,-400.0,0.00024369,30]
[380272449,1755630813993,-1766.6,0.00024369,30]
[380272450,1755630814059,-400.0,0.00024369,30]
[380272451,1755630814127,-759.13,0.00024369,30]
[380272452,1755630814194,-2391.14,0.00024369,30]
[380272453,1755630814263,-764.46,0.00024369,30]
[380272454,1755630814336,-2045.43,0.00024369,30]
[380272455,1755630814404,-2644.5,0.00024369,30]
[380272456,1755630814468,-1321.22,0.00024369,30]
[380272457,1755630814530,-400.0,0.00024369,30]
[380272458,1755630814592,-1028.93,0.00024369,30]
[380272459,1755630814655,-2587.83,0.00024369,30]
[380272460,1755630814717,-574.26,0.00024369,30]
[380272461,1755630814782,-400.0,0.00024369,30]
[380272462,1755630814849,-414.53,0.00024369,30]
[380272463,1755630814921,-1609.98,0.00024369,30]
[380272464,1755630814994,-1988.32,0.00024369,30]
[380272465,1755630815067,-828.08,0.00024369,30]
[380272466,1755630815139,-400.0,0.00024369,30]
[380272467,1755630815210,-402.0,0.00024369,30]
[380272468,1755630815282,-3327.81,0.00024369,30]
[380272469,1755630815354,-2635.88,0.00024369,30]
[380272470,1755630815426,-2274.92,0.00024369,30]
[380272471,1755630815495,-3966.88,0.00024369,30]
[380272472,1755630815560,-1675.13,0.00024369,30]
[380272473,1755630815622,-400.0,0.00024369,30]
[380272474,1755630815686,-400.0,0.00024369,30]
[380272475,1755630815747,-400.0,0.00024369,30]
[380272476,1755630815821,-400.0,0.00024369,30]
[380272477,1755630815882,-633.22,0.00024369,30]
[380272478,1755630815942,-400.0,0.00024369,30]
[380272479,1755630816004,-2597.2,0.00024369,30]
[380272480,1755630816079,-1129.6,0.00024369,30]
[380272481,1755630816144,-1454.3,0.00024369,30]
[380272482,1755630816208,-400.0,0.00024369,30]
[380272483,1755630816271,-892.58,0.00024369,30]
[380272484,1755630816337,-1389.72,0.00024369,30]
[380272485,1755630816404,-704.57,0.00024369,30]
[380272486,1755630816466,-1626.22,0.00024369,30]
[380272487,1755630816529,-400.0,0.00024369,30]
[380272488,1755630816591,-402.52,0.00024369,30]
[380272489,1755630816652,-758.46,0.00024369,30]
[380272490,1755630816712,-1948.15,0.00024369,30]
[380272491,1755630816773,-2232.67,0.00024369,30]
[380272492,1755630816831,-646.97,0.00024369,30]
[380272493,1755630816893,-1767.01,0.00024369,30]
[380272494,1755630816952,-1951.89,0.00024369,30]
[380272495,1755630817010,-1978.37,0.00024369,30]
[380272496,1755630817070,-1713.52,0.00024369,30]
[380272497,1755630817140,-988.17,0.00024369,30]
[380272498,1755630817207,-452.3,0.00024369,30]
[380272499,1755630817273,-1178.32,0.00024369,30]
[380272500,1755630817340,-400.0,0.00024369,30]
[380272501,1755630817406,-474.04,0.00024369,30]
[380272502,1755630817470,-400.0,0.00024369,30]
[380272503,1755630817533,-400.0,0.00024369,30]
[380272504,1755630817599,-2626.25,0.00024369,30]
[380272505,1755630817660,-400.0,0.00024369,30]
[380272506,1755630817720,-2345.23,0.00024369,30]
[380272507,1755630817782,-400.0,0.00024369,30]
[380272508,1755630817840,-843.54,0.00024369,30]
[380272509,1755630817900,-2199.04,0.00024369,30]
[380272510,1755630817960,-400.0,0.00024369,30]
[380272511,1755630818025,-3426.21,0.00024369,30]
[380272512,1755630818091,-400.0,0.00024369,30]
[380272513,1755630818158,-2339.85,0.00024369,30]
[380272514,1755630818224,-1431.42,0.00024369,30]
[380272515,1755630818288,-400.0,0.00024369,30]
[380272516,1755630818354,-1879.73,0.00024369,30]
[380272517,1755630818420,-2605.4,0.00024369,30]
[380272518,1755630818488,-2170.2,0.00024369,30]
[380272519,1755630818551,-2965.05,0.00024369,30]
[380272520,1755630818613,-400.0,0.00024369,30]
[380272521,1755630818675,-1003.58,0.00024369,30]
[380272522,1755630818739,-667.84,0.00024369,30]
[380272523,1755630819088,-1775.32,0.00024369,30]
[380272524,1755630819159,-781.97,0.00024369,30]
[380272525,1755630819227,-2499.51,0.00024369,30]
[380272526,1755630819294,-400.0,0.00024369,30]
[380272527,1755630819362,-657.01,0.00024369,30]
[380272528,1755630819427,-400.0,0.00024369,30]
[380272529,1755630819490,-400.0,0.00024369,30]
[380272530,1755630819552,-400.0,0.00024369,30]
[380272531,1755630819613,-1626.0,0.00024369,30]
[380272532,1755630819672,-411.70065301,0.00024369,30]
[380272533,1755630819731,-834.1,0.00024369,30]
[380272534,1755630819790,-762.72,0.00024369,30]
[380272535,1755630819851,-400.0,0.00024369,30]
[380272536,1755630819913,-812.96,0.00024369,30]
[380272537,1755630819975,-1795.88,0.00024369,30]
[380272538,1755630820037,-812.84,0.00024369,30]
[380272539,1755630820103,-400.0,0.00024369,30]
[380272540,1755630820170,-2037.62,0.00024369,30]
[380272541,1755630820236,-400.0,0.00024369,30]
[380272542,1755630820303,-2089.8,0.00024369,30]
[380272543,1755630820370,-400.0,0.00024369,30]
[380272544,1755630820434,-400.0,0.00024369,30]
[380272545,1755630820493,-912.15,0.00024369,30]
[380272546,1755630820554,-1867.16,0.00024369,30]
[380272547,1755630820617,-927.26,0.00024369,30]
[380272548,1755630820679,-400.0,0.00024369,30]
[380272549,1755630820741,-1264.15,0.00024369,30]
[380272550,1755630820798,-1632.29,0.00024369,30]
[380272551,1755630820856,-1147.83,0.00024369,30]
[380272552,1755630820915,-822.45,0.00024369,30]
[380272553,1755630820973,-2642.11,0.00024369,30]
[380272554,1755630821032,-400.0,0.00024369,30]
[380272555,1755630821095,-400.0,0.00024369,30]
[380272556,1755630821163,-437.64,0.00024369,30]
[380272557,1755630821241,-400.0,0.00024369,30]
[380272558,1755630821305,-854.72,0.00024369,30]
[380272559,1755630821371,-2401.94,0.00024369,30]
[380272560,1755630821438,-2923.07,0.00024369,30]
[380272561,1755630821502,-400.0,0.00024369,30]
[380272562,1755630821569,-531.2,0.00024369,30]
[380272563,1755630821634,-400.0,0.00024369,30]
[380272564,1755630821696,-888.25,0.00024369,30]
[380272565,1755630821759,-842.32,0.00024369,30]
[380272566,1755630821822,-1920.95,0.00024369,30]
[380272567,1755630821883,-400.0,0.00024369,30]
[380272568,1755630821945,-1522.14,0.00024369,30]
[380272569,1755630822008,-1843.66,0.00024369,30]
[380272570,1755630822076,-589.48,0.00024369,30]
[380272571,1755630822146,-1357.11,0.00024369,30]
[380272572,1755630822211,-1090.36,0.00024369,30]
[380272573,1755630822278,-400.0,0.00024369,30]
[380272574,1755630822341,-400.0,0.00024369,30]
[380272575,1755630822407,-2036.5,0.00024369,30]
[380272576,1755630822475,-2160.01,0.00024369,30]
[380272577,1755630822537,-733.36,0.00024369,30]
[380272578,1755630822599,-400.0,0.00024369,30]
[380272579,1755630822662,-1567.0,0.00024369,30]
[380272580,1755630822723,-2269.73,0.00024369,30]
[380272581,1755630822785,-7066.74,0.00024369,30]
[380272582,1755630822849,-381.54134279,0.00024369,30]
[380272583,1755630822911,-2339.92,0.00024369,30]
[380272584,1755630822969,-400.0,0.00024369,30]
[380272585,1755630823030,-400.0,0.00024369,30]
[380272586,1755630823092,-1713.64,0.00024369,30]
[380272587,1755630823156,-530.76,0.00024369,30]
[380272588,1755630823222,-1159.8,0.00024369,30]
[380272589,1755630823288,-400.0,0.00024369,30]
[380272590,1755630823358,-400.0,0.00024369,30]
[380272591,1755630823425,-594.02,0.00024369,30]
[380272592,1755630823490,-2161.34,0.00024369,30]
[380272593,1755630823557,-785.37,0.00024369,30]
[380272594,1755630823623,-925.07,0.00024369,30]
[380272595,1755630823688,-400.0,0.00024369,30]
[380272596,1755630823757,-1533.15,0.00024369,30]
[380272597,1755630823823,-1094.8,0.00024369,30]
[380272598,1755630823891,-827.42,0.00024369,30]
[380272599,1755630823955,-400.0,0.00024369,30]
[380272600,1755630824021,-1481.14,0.00024369,30]
[380272601,1755630824088,-400.0,0.00024369,30]
[380272602,1755630824167,-400.0,0.00024369,30]
[380272603,1755630824240,-424.97,0.00024369,30]
[380272604,1755630824309,-2049.37,0.00024369,30]
[380272605,1755630824390,-400.0,0.00024369,30]
[380272606,1755630824458,-535.14,0.00024369,30]
[380272607,1755630824524,-2172.05,0.00024369,30]
[380272608,1755630824592,-400.0,0.00024369,30]
[380272609,1755630824660,-1532.6,0.00024369,30]
[380272610,1755630824724,-831.55,0.00024369,30]
[380272611,1755630824792,-853.09,0.00024369,30]
[380272612,1755630824858,-1512.48,0.00024369,30]
[380272613,1755630824922,-400.0,0.00024369,30]
[380272614,1755630824990,-757.23,0.00024369,30]
[380272615,1755630825062,-400.0,0.00024369,30]
[380272616,1755630825132,-834.74,0.00024369,30]
[380272617,1755630825620,-400.0,0.00024369,30]
[380272618,1755630825691,-528.08,0.00024369,30]
[380272619,1755630825756,-1466.98,0.00024369,30]
[380272620,1755630825823,-1667.74,0.00024369,30]
[380272621,1755630825888,-851.95,0.00024369,30]
[380272622,1755630825950,-400.0,0.00024369,30]
[380272623,1755630826022,-3654.91,0.00024369,30]
[380272624,1755630826089,-400.0,0.00024369,30]
[380272625,1755630826158,-585.37,0.00024369,30]
[380272626,1755630826225,-1678.23,0.00024369,30]
[380272627,1755630826291,-500.95,0.00024369,30]
[380272628,1755630826357,-400.0,0.00024369,30]
[380272629,1755630826424,-1296.84,0.00024369,30]
[380272630,1755630826490,-990.17,0.00024369,30]
[380272631,1755630826556,-1498.02,0.00024369,30]
[380272632,1755630826619,-414.92,0.00024369,30]
[380272633,1755630826684,-490.9,0.00024369,30]
[380272634,1755630826746,-1422.74,0.00024369,30]
[380272635,1755630826811,-684.54,0.00024369,30]
[380272636,1755630826873,-837.81,0.00024369,30]
[380272637,1755630826941,-1994.78,0.00024369,30]
[380272638,1755630827007,-400.0,0.00024369,30]
[380272639,1755630827074,-916.66,0.00024369,30]
[380272640,1755630827144,-1483.77,0.00024369,30]
[380272641,1755630827212,-2023.25,0.00024369,30]
[380272642,1755630827281,-5424.17,0.00024369,30]
[380272643,1755630827348,-400.0,0.00024369,30]
[380272644,1755630827416,-827.87,0.00024369,30]
[380272645,1755630827481,-400.0,0.00024369,30]
[380272646,1755630827545,-1863.32,0.00024369,30]
[380272647,1755630827609,-1962.6,0.00024369,30]
[380272648,1755630827671,-539.12,0.00024369,30]
[380272649,1755630827735,-1489.75,0.00024369,30]
[380272650,1755630827799,-1279.96,0.00024369,30]
[380272651,1755630827861,-804.37,0.00024369,30]
[380272652,1755630827923,-879.44,0.00024369,30]
[380272653,1755630827984,-400.0,0.00024369,30]
[380272654,1755630828049,-736.46,0.00024369,30]
[380272655,1755630828116,-400.0,0.00024369,30]
[380272656,1755630828185,-3004.1,0.00024369,30]
[380272657,1755630828254,-540.41,0.00024369,30]
[380272658,1755630828322,-903.83,0.00024369,30]
[380272659,1755630828394,-400.0,0.00024369,30]
[380272660,1755630828463,-400.0,0.00024369,30]
[380272661,1755630828527,-452.13,0.00024369,30]
[380272662,1755630828589,-768.98,0.00024369,30]
[380272663,1755630828650,-1813.68,0.00024369,30]
[380272664,1755630828714,-400.0,0.00024369,30]
[380272665,1755630828777,-400.0,0.00024369,30]
[380272666,1755630828839,-400.0,0.00024369,30]
[380272667,1755630828899,-2223.82,0.00024369,30]
[380272668,1755630828958,-400.0,0.00024369,30]
[380272669,1755630829018,-2140.5,0.00024369,30]
[380272670,1755630829083,-400.0,0.00024369,30]
[380272671,1755630829152,-2978.0,0.00024369,30]
[380272672,1755630829220,-762.55,0.00024369,30]
[380272673,1755630829289,-1352.34,0.00024369,30]
[380272674,1755630829359,-400.0,0.00024369,30]
[380272675,1755630829424,-447.68,0.00024369,30]
[380272676,1755630829489,-2258.26,0.00024369,30]
[380272677,1755630829556,-400.0,0.00024369,30]
[380272678,1755630829622,-400.0,0.00024369,30]
[380272679,1755630829686,-666.94,0.00024369,30]
[380272680,1755630829748,-400.0,0.00024369,30]
[380272681,1755630829812,-400.0,0.00024369,30]
[380272682,1755630829873,-400.0,0.00024369,30]
[380272683,1755630829934,-699.19,0.00024369,30]
[380272684,1755630829995,-786.12,0.00024369,30]
[380272685,1755630830060,-1078.83,0.00024369,30]
[380272686,1755630830125,-400.0,0.00024369,30]
[380272687,1755630830193,-685.74,0.00024369,30]
[380272688,1755630830260,-287.3,0.00024369,30]
[380272689,1755630830327,-1514.98,0.00024369,30]
[380272690,1755630830393,-686.36,0.00024369,30]
[380272691,1755630830459,-400.0,0.00024369,30]
[380272692,1755630830523,-400.0,0.00024369,30]
[380272693,1755630830586,-783.3,0.00024369,30]
[380272694,1755630830756,-400.0,0.00024369,30]
[380272695,1755630830823,-400.0,0.00024369,30]
[380272696,1755630830887,-3991.88,0.00024369,30]
[380272697,1755630830956,-927.22,0.00024369,30]
[380272698,1755630831024,-858.73,0.00024369,30]
[380272699,1755630831091,-463.57,0.00024369,30]
[380272700,1755630831167,-638.06,0.00024369,30]
[380272701,1755630831234,-1217.67,0.00024369,30]
[380272702,1755630831303,-1055.26,0.00024369,30]
[380272703,1755630831367,-617.22,0.00024369,30]
[380272704,1755630831432,-654.88,0.00024369,30]
[380272705,1755630831494,-927.42,0.00024369,30]
[380272706,1755630831555,-400.0,0.00024369,30]
[380272707,1755630831616,-877.36,0.00024369,30]
[380272708,1755630831678,-1451.41,0.00024369,30]
[380272709,1755630831740,-400.0,0.00024369,30]
[380272710,1755630831799,-774.15,0.00024369,30]
[380272711,1755630831855,-268.18112371,0.00024369,30]
[380272712,1755630831916,-400.0,0.00024369,30]
[380272713,1755630831974,-755.17,0.00024369,30]
[380272714,1755630832033,-1269.4,0.00024369,30]
[380272715,1755630832095,-850.21,0.00024369,30]
[380272716,1755630832158,-400.0,0.00024369,30]
[380272717,1755630832227,-2050.78,0.00024369,30]
[380272718,1755630832295,-1574.07,0.00024369,30]
[380272719,1755630832361,-400.0,0.00024369,30]
[380272720,1755630832425,-3252.62,0.00024369,30]
[380272721,1755630832486,-400.0,0.00024369,30]
[380272722,1755630832547,-893.8,0.00024369,30]
[380272723,1755630832607,-1796.62,0.00024369,30]
[380272724,1755630832669,-2151.13,0.00024369,30]
[380272725,1755630832733,-400.0,0.00024369,30]
[380272726,1755630832793,-400.0,0.00024369,30]
[380272727,1755630832854,-400.0,0.00024369,30]
[380272728,1755630832914,-1524.91,0.00024369,30]
[380272729,1755630832973,-400.0,0.00024369,30]
[380272730,1755630833039,-1268.61,0.00024369,30]
[380272731,1755630833108,-3537.65,0.00024369,30]
[380272732,1755630833181,-400.0,0.00024369,30]
[380272733,1755630833250,-632.78,0.00024369,30]
[380272734,1755630833317,-1091.34,0.00024369,30]
[380272735,1755630833386,-1777.71,0.00024369,30]
[380272736,1755630833455,-1517.91,0.00024369,30]
[380272737,1755630833522,-400.0,0.00024369,30]
[380272738,1755630833596,-449.25,0.00024369,30]
[380272739,1755630833667,-400.0,0.00024369,30]
[380272740,1755630833739,-603.15,0.00024369,30]
[380272741,1755630833805,-1999.87,0.00024369,30]
[380272742,1755630833869,-737.73,0.00024369,30]
[380272743,1755630833935,-759.41,0.00024369,30]
[380272744,1755630834001,-2887.56,0.00024369,30]
[380272745,1755630834071,-2399.17,0.00024369,30]
[380272746,1755630834140,-1092.33,0.00024369,30]
[380272747,1755630834209,-400.0,0.00024369,30]
[380272748,1755630834277,-1154.89,0.00024369,30]
[380272749,1755630834346,-400.0,0.00024369,30]
[380272750,1755630834415,-400.0,0.00024369,30]
[380272751,1755630834482,-540.17,0.00024369,30]
[380272752,1755630834547,-1604.08,0.00024369,30]
[380272753,1755630834614,-400.0,0.00024369,30]
[380272754,1755630834679,-862.64,0.00024369,30]
[380272755,1755630834745,-558.64,0.00024369,30]
[380272756,1755630834808,-961.11,0.00024369,30]
[380272757,1755630834869,-464.91,0.00024369,30]
[380272758,1755630834933,-400.0,0.00024369,30]
[380272759,1755630834997,-996.27,0.00024369,30]
[380272760,1755630835065,-400.0,0.00024369,30]
[380272761,1755630835134,-1174.54,0.00024369,30]
[380272762,1755630835205,-400.0,0.00024369,30]
[380272763,1755630835271,-400.0,0.00024369,30]
[380272764,1755630835336,-400.0,0.00024369,30]
[380272765,1755630835404,-529.25,0.00024369,30]
[380272766,1755630835468,-467.39,0.00024369,30]
[380272767,1755630835536,-1287.79,0.00024369,30]
[380272768,1755630835602,-410.72,0.00024369,30]
[380272769,1755630835670,-645.33,0.00024369,30]
[380272770,1755630835739,-897.36,0.00024643,30]
[380272771,1755630835805,-1779.17,0.00024643,30]
[380272772,1755630835868,-400.0,0.00024643,30]
[380272773,1755630835932,-400.0,0.00024643,30]
[380272774,1755630835993,-400.0,0.00024643,30]
[380272775,1755630836067,-922.03,0.00024643,30]
[380272776,1755630836133,-1077.73,0.00024643,30]
[380272777,1755630836200,-400.0,0.00024643,30]
[380272778,1755630836267,-424.48,0.00024643,30]
[380272779,1755630836335,-400.0,0.00024643,30]
[380272780,1755630836403,-405.71,0.00024643,30]
[380272781,1755630836468,-573.46,0.00024643,30]
[380272782,1755630836534,-1099.82,0.00024643,30]
[380272783,1755630836603,-1032.27,0.00024643,30]
[380272784,1755630836671,-405.59,0.00024643,30]
[380272785,1755630836738,-657.7,0.00024643,30]
[380272786,1755630836800,-2773.84,0.00024643,30]
[380272787,1755630836863,-2616.85,0.00024643,30]
[380272788,1755630836922,-569.65,0.00024643,30]
[380272789,1755630836979,-609.41,0.00024643,30]
[380272790,1755630837039,-523.45,0.00024643,30]
[380272791,1755630837099,-2291.88,0.00024643,30]
[380272792,1755630837165,-1113.47,0.00024643,30]
[380272793,1755630837229,-1609.3,0.00024643,30]
[380272794,1755630837292,-400.0,0.00024643,30]
[380272795,1755630837356,-503.96,0.00024643,30]
[380272796,1755630837424,-1375.63,0.00024643,30]
[380272797,1755630837495,-2391.62,0.00024643,30]
[380272798,1755630837561,-400.0,0.00024643,30]
[380272799,1755630837627,-567.71,0.00024643,30]
[380272800,1755630837695,-976.66,0.00024643,30]
[380272801,1755630837758,-444.55,0.00024643,30]
[380272802,1755630837821,-400.0,0.00024643,30]
[380272803,1755630837880,-1613.2,0.00024643,30]
[380272804,1755630837939,-655.88,0.00024643,30]
[380272805,1755630837998,-400.0,0.00024643,30]
[380272806,1755630838066,-1093.07,0.00024643,30]
[380272807,1755630838132,-1066.76,0.00024643,30]
[380272808,1755630838195,-750.6,0.00024643,30]
[380272809,1755630838259,-400.0,0.00024643,30]